[Event "AUT Bundesliga Women 2021-22"]
[Site "Austria"]
[Date "2022.04.23"]
[Round "9.3"]
[White "Exler, Veronika"]
[Black "Mar, Karmen"]
[Result "0-1"]
[ECO "D12"]
[WhiteElo "2089"]
[BlackElo "2074"]
[Annotator "TA"]
[PlyCount "72"]
[EventDate "2021.11.06"]
[EventType "team-tourn"]
[EventCountry "AUT"]
[SourceTitle "playchess.com"]
[Source "ChessBase"]
[SourceQuality "1"]
[TimeControl "40/5400+30:1800+30"]

{[%evp 15,72,27,21,12,20,25,22,12,10,0,27,0,0,0,0,0,24,0,11,-43,-27,-100,-80,-81,-88,-88,-70,-117,-124,-239,-180,-185,-174,-216,-36,-29,-34,-37,-34,-90,-85,-81,-89,-133,-129,-220,-220,-208,-193,-304,-307,-490,-487,-466,-461,-879,-873,-806,-824]} 1. d4 {[%emt 0:00:01]} d5 {[%emt 0:00:15]} 2. c4 {[%emt 0:00:04]} c6 {[%emt 0:00:10]} 3. e3 {[%emt 0:00:04]} Nf6 {[%emt 0:00:45]} 4. Nf3 {[%emt 0:00:33]} Bf5 {[%emt 0:00:56]} 5. Nc3 {[%emt 0:00:10]} e6 {[%emt 0:00:20]} 6. Nh4 {[%emt 0:00:23]} Be4 {[%emt 0:00:56]} 7. f3 {[%emt 0:00:14]} Bg6 {[%emt 0:00:19]} 8. Qb3 {[%emt 0:00:05]} Qc7 {[%emt 0:00:29]} 9. Bd2 {[%emt 0:00:11] D12: Slav Defence: 3 Nf3 Nf6 4 e3 Bf5.} Be7 {[%emt 0:06:51]} 10. Nxg6 {[%emt 0:00:19]} hxg6 {[%emt 0:00:05]} 11. O-O-O {[%emt 0:00:06] The position is equal.} dxc4 {[%emt 0:06:31]} 12. Bxc4 {[%emt 0:01:06]} b5 {[%emt 0:03:40]} 13. Bd3 {[%emt 0:03:08]} a6 {[%emt 0:04:50]} 14. Ne4 {[%emt 0:22:49]} Nxe4 {[%emt 0:06:15]} 15. Bxe4 {[%emt 0:06:55]} Nd7 {[%emt 0:08:01] [#]} 16. f4 $146 {[%emt 0:35:41]} (16. Kb1 $5 {[%cal Rd1c1]}) ({Predecessor:} 16. Kb1 Rd8 17. Qc3 c5 18. dxc5 Nf6 19. Qa5 Qc8 20. Bc2 Bxc5 21. e4 O-O 22. Bb3 {1-0 (46) Ovchinnikov,V (2349)-Bazeev,G (2401) St Petersburg 2020}) 16... Rc8 {[%emt 0:02:58]} 17. Bf3 {[%emt 0:01:54]} (17. Kb1 $11) 17... c5 $15 {[%emt 0:11:54]} 18. d5 {[%emt 0:00:06]} (18. Kb1 $11 {keeps the balance.}) 18... c4 $17 {[%emt 0:00:25]} 19. Qc2 {[%emt 0:00:40] dxe6 is the strong threat.} c3 {[%emt 0:18:59]} 20. bxc3 {[%emt 0:01:45]} (20. Bxc3 $2 exd5 21. Be2 (21. Rxd5 $2 b4 $19) 21... O-O $17) 20... exd5 {[%emt 0:00:31]} 21. Bxd5 {[%emt 0:01:29]} (21. Kb1 $15) 21... Nb6 {[%emt 0:00:24]} 22. Qb3 {[%emt 0:09:37]} (22. e4 $17 {might work better.}) 22... Bf6 {[%emt 0:01:46] Strongly threatening ...b4.} 23. e4 {[%emt 0:02:01]} Bxc3 {[%emt 0:05:06]} 24. Bxc3 {[%emt 0:01:21] [#] And now Rd3 would win.} Qxc3+ {[%emt 0:03:17]} (24... Na4 $1 $19 25. Rdf1 O-O) 25. Qxc3 $15 {[%emt 0:00:08]} Rxc3+ {[%emt 0:00:01]} 26. Kb1 {[%emt 0:09:09]} Ke7 {[%emt 0:04:29]} 27. Bb7 {[%emt 0:01:29]} ({White should try} 27. e5 $15) 27... a5 {[%emt 0:06:01]} 28. Rc1 {[%emt 0:00:24]} Na4 {[%emt 0:03:10] Black is more active.} 29. h3 {[%emt 0:02:31]} Rd8 {[%emt 0:01:47]} 30. Rxc3 {[%emt 0:00:29]} (30. Bd5 $17) 30... Nxc3+ $17 {[%emt 0:00:01][%mdl 4096] Endgame KRB-KRN} 31. Kb2 {[%emt 0:00:11]} b4 {[%emt 0:01:14]} 32. a3 {[%emt 0:00:35]} (32. Kb3 {was called for.}) 32... Na4+ $19 {[%emt 0:01:57]} 33. Kb1 {[%emt 0:00:47] [#]} (33. Ka1 $142 Rd2 34. axb4 axb4 35. Bd5) 33... Rd2 $1 {[%emt 0:01:29] Black is clearly winning.} 34. axb4 {[%emt 0:00:11]} axb4 {[%emt 0:00:12][%cal Ba5b4,Bb4b3][%mdl 32]} ({Weaker is} 34... Rxg2 35. Rc1 $19) 35. Kc1 {[%emt 0:00:46]} (35. Bd5 $142 b3 36. Bxb3 (36. Rc1 $2 Rb2+ 37. Ka1 Rc2 $19) 36... Rb2+ 37. Kc1 Rxb3 38. Re1) 35... Ra2 {[%emt 0:00:33] ( -> ...b3)} 36. Rd1 {[%emt 0:00:30]} b3 {[%emt 0:01:01] Weighted Error Value: White=0.49/Black=0.15 (very precise)} 0-1

[Event "AUT Bundesliga Women 2021-22"]
[Site "Austria"]
[Date "2022.04.23"]
[Round "9.4"]
[White "Gritsch, Borbala"]
[Black "Moerwald, Miriam"]
[Result "0-1"]
[ECO "C01"]
[WhiteElo "1485"]
[BlackElo "1737"]
[Annotator "NA RC COMBH"]
[PlyCount "83"]
[EventDate "2021.11.06"]
[EventType "team-tourn"]
[EventCountry "AUT"]
[SourceTitle "playchess.com"]
[Source "ChessBase"]
[SourceQuality "1"]
[TimeControl "40/5400+30:1800+30"]

1. e4 {[%emt 0:00:02]} e6 {[%emt 0:00:17]} 2. d4 {[%emt 0:00:17]} d5 {[%emt 0:00:11]} 3. exd5 {[%emt 0:00:17]} exd5 {[%emt 0:00:31]} 4. Bd3 {[%emt 0:00:15]} Bd6 {[%emt 0:00:26]} 5. c3 {[%emt 0:00:47]} Ne7 {[%emt 0:00:51]} 6. Ne2 {[%emt 0:00:17]} O-O {[%emt 0:02:15]} 7. O-O {[%emt 0:00:39]} c6 {[%emt 0:02:46]} 8. Bf4 {[%emt 0:03:33]} Bf5 {[%emt 0:03:44]} 9. Re1 {[%emt 0:02:21]} Re8 {[%emt 0:03:17]} 10. Na3 {[%emt 0:01:49]} Bxa3 {[%emt 0:02:31]} 11. bxa3 {[%emt 0:01:14]} Bxd3 {[%emt 0:02:23]} 12. Qxd3 {[%emt 0:02:10]} Ng6 {[%emt 0:08:07]} 13. Bg3 {[%emt 0:02:12]} Nd7 {[%emt 0:07:01]} 14. Bd6 {[%emt 0:03:48]} Nb6 {[%emt 0:04:52]} 15. Bb4 {[%emt 0:00:50]} Nc4 {[%emt 0:05:10]} 16. Ng3 {[%emt 0:26:34]} a5 {[%emt 0:04:51]} 17. Bc5 {[%emt 0:06:37]} b6 {[%emt 0:01:14]} 18. Rxe8+ {[%emt 0:03:27]} Qxe8 {[%emt 0:00:24]} 19. Bxb6 {[%emt 0:01:05]} Nxb6 {[%emt 0:00:18]} 20. Rb1 {[%emt 0:01:17]} Nc4 {[%emt 0:03:36]} 21. Kf1 {[%emt 0:02:10]} Nf4 {[%emt 0:03:51]} 22. Qd1 {[%emt 0:04:07]} Rb8 {[%emt 0:06:59]} 23. Rb3 {[%emt 0:01:57]} Rxb3 {[%emt 0:10:18]} 24. axb3 {[%emt 0:00:14]} Nxa3 {[%emt 0:05:16]} 25. Qc1 {[%emt 0:01:48]} Nd3 {[%emt 0:02:13]} 26. Qd2 {[%emt 0:00:57]} Nc2 {[%emt 0:02:41]} 27. Ne2 {[%emt 0:02:00]} Nce1 {[%emt 0:04:17]} 28. f3 {[%emt 0:03:26]} Qb8 {[%emt 0:01:01]} 29. Nc1 {[%emt 0:01:46]} Nxc1 {[%emt 0:02:56]} 30. Qxc1 {[%emt 0:01:28]} Nd3 {[%emt 0:01:14]} 31. Qe3 {[%emt 0:00:57]} Nf4 {[%emt 0:02:03]} 32. c4 {[%emt 0:03:44]} Ne6 {[%emt 0:01:55]} 33. g3 {[%emt 0:03:06]} h6 {[%emt 0:01:14]} 34. Ke2 {[%emt 0:01:35]} dxc4 {[%emt 0:00:52]} 35. bxc4 {[%emt 0:01:28]} Qb2+ {[%emt 0:00:09]} 36. Kd3 {[%emt 0:01:36]} Qb3+ {[%emt 0:00:31]} 37. Kd2 {[%emt 0:01:07]} Qxe3+ {[%emt 0:01:47]} 38. Kxe3 {[%emt 0:00:28]} a4 {[%emt 0:00:11]} 39. Kd3 {[%emt 0:00:39]} a3 40. Kc3 {[%emt 0:00:25]} Nxd4 {[%emt 0:01:05]} 41. f4 {[%emt 0:30:45]} c5 {[%emt 0:31:54]} 42. g4 {[%emt 0:01:41]} 0-1

[Event "AUT Bundesliga Women 2021-22"]
[Site "Austria"]
[Date "2022.04.23"]
[Round "9.5"]
[White "Mayrhuber, Nikola"]
[Black "Matnadze, Ana"]
[Result "0-1"]
[ECO "E01"]
[WhiteElo "2118"]
[BlackElo "2423"]
[Annotator "TA"]
[PlyCount "80"]
[EventDate "2021.11.06"]
[EventType "team-tourn"]
[EventCountry "AUT"]
[SourceTitle "playchess.com"]
[Source "ChessBase"]
[SourceQuality "1"]
[TimeControl "40/5400+30:1800+30"]

{[%evp 19,80,16,3,0,0,0,5,-90,-83,-82,-93,-124,-111,-119,-51,-100,-91,-96,-76,-77,-99,-80,-44,-97,-70,-103,-88,-77,-69,-68,-69,-424,-335,-385,-338,-333,-333,-362,-303,-722,-678,-841,-834,-819,-792,-827,-668,-851,-826,-825,-831,-838,-821,-1332,-1316,-1237,-1219,-29988,-29989,-29991,-29992,-29992,-29993]} 1. d4 {[%emt 0:00:02] Ribli,Z} Nf6 {[%emt 0:00:18]} 2. c4 {[%emt 0:00:06]} e6 {[%emt 0:00:06]} 3. g3 {[%emt 0:00:15]} d5 {[%emt 0:00:21]} 4. Bg2 {[%emt 0:00:08]} Bb4+ {[%emt 0:00:08]} 5. Bd2 {[%emt 0:00:11]} Be7 {[%emt 0:00:07]} 6. Nf3 {[%emt 0:00:50]} c6 {[%emt 0:00:11]} 7. Qc2 {[%emt 0:01:05]} O-O {[%emt 0:00:26]} 8. O-O {[%emt 0:00:08]} b6 {[%emt 0:00:20]} 9. Bf4 {[%emt 0:02:08]} Ba6 {[%emt 0:02:37]} 10. Nbd2 {[%emt 0:06:15]} Nbd7 {[%emt 0:02:23]} 11. Rfd1 {[%emt 0:03:39] E11: Bogo-Indian.} Rc8 {[%emt 0:01:00]} 12. Rac1 {[%emt 0:08:27]} Nh5 {[%emt 0:05:24]} 13. e4 {[%emt 0:13:23]} (13. Be3 $11 {remains equal.}) 13... Nxf4 $17 {[%emt 0:01:02]} 14. gxf4 {[%emt 0:00:06]} Nf6 {[%emt 0:10:05] [#]} 15. Ng5 $146 {[%emt 0:10:35]} ({Predecessor:} 15. Ne5 Nh5 16. Qa4 Bxc4 17. Nxc6 b5 18. Qa6 Rxc6 19. Qxc6 Nxf4 20. Nxc4 bxc4 21. exd5 exd5 {0-1 (61) Radjabov,T (2624)-Topalov,V (2743) Wijk aan Zee 2003 CBM 093 [Ribli,Z]}) 15... h6 {[%emt 0:01:54]} 16. Nh3 {[%emt 0:04:14]} Bb4 {[%emt 0:09:05]} (16... dxe4 $17 17. Nxe4 Nxe4 18. Qxe4 Bf6) 17. b3 {[%emt 0:07:28]} (17. e5 $1 $15 Nh5 18. f5) 17... Bxd2 {[%emt 0:03:21]} (17... dxe4 {feels hotter.} 18. Nxe4 Be7 19. Kh1 Qc7) 18. Rxd2 {[%emt 0:02:40]} Nxe4 {[%emt 0:01:32]} 19. Bxe4 {[%emt 0:01:02]} dxe4 {[%emt 0:00:05]} 20. Qxe4 {[%emt 0:00:26]} Rc7 {[%emt 0:02:41]} 21. Rc3 {[%emt 0:05:05]} (21. f3 $15) 21... Rd7 {[%emt 0:06:10]} 22. Rg3 {[%emt 0:01:39] [#]} Qf6 $1 {[%emt 0:06:35]} 23. f3 {[%emt 0:07:36]} Rfd8 {[%emt 0:01:01][%cal Rd7d4]} 24. Nf2 $1 {[%emt 0:05:06]} h5 {[%emt 0:08:32][%cal Rd7d4] Prevents Ng4.} ({But not} 24... Rxd4 {[#]} 25. Ng4 $1 {[%mdl 512]} Qe7 26. Nxh6+ (26. Rxd4 Qc5 $17) 26... Kf8 27. Qh7 $11 (27. Rxd4 Qc5 $17)) 25. Qxc6 $2 {[%emt 0:03:45][%mdl 8192] Loses the game.} (25. Qe5 $15 Qxe5 26. fxe5) 25... Qxf4 {[%emt 0:02:37]} 26. Rd3 {[%emt 0:11:13]} Rxd4 {[%emt 0:06:54]} 27. Rxd4 {[%emt 0:00:40]} Qxd4 {[%emt 0:00:09]} ({Weaker is} 27... Rxd4 28. Qa8+ Kh7 29. a4 $17 (29. Qf8 $2 g6 $19)) 28. Kg2 {[%emt 0:00:22]} Qb2 {[%emt 0:12:21]} 29. Rg5 $2 {[%emt 0:03:33]} (29. h4) 29... g6 $19 {[%emt 0:02:57] Hoping for ...Rd2.} 30. Qc7 {[%emt 0:02:29]} Rd2 {[%emt 0:01:24][%cal Bd8d2,Bd2b2,Bb2b1,Bb1b3,Bb3f3][%mdl 32]} 31. Qg3 {[%emt 0:00:04]} Qd4 {[%emt 0:02:14] White must now prevent ...h4.} 32. h4 {[%emt 0:00:36]} Bb7 {[%emt 0:00:52]} 33. a4 {[%emt 0:00:51]} Rb2 {[%emt 0:01:51]} 34. a5 {[%emt 0:00:19]} Bc6 {[%emt 0:02:37]} 35. axb6 {[%emt 0:00:41]} axb6 {[%emt 0:00:01]} 36. Kf1 {[%emt 0:00:48]} Rb1+ {[%emt 0:00:20]} 37. Kg2 {[%emt 0:00:08]} Rxb3 {[%emt 0:00:34]} 38. Kh2 {[%emt 0:00:54]} Rxf3 {[%emt 0:01:06] Black mates.} 39. Rxg6+ {[%emt 0:00:23]} fxg6 {[%emt 0:00:10]} 40. Qxg6+ {[%emt 0:00:04]} Kf8 {[%emt 0:00:25] Weighted Error Value: White=0.99/Black=0.16 (very precise)} 0-1

[Event "AUT Bundesliga Women 2021-22"]
[Site "Austria"]
[Date "2022.04.23"]
[Round "9.6"]
[White "Injac, Teodora"]
[Black "Schloffer, Jasmin-Denise"]
[Result "1-0"]
[ECO "A05"]
[WhiteElo "2407"]
[BlackElo "2089"]
[Annotator "TA"]
[PlyCount "65"]
[EventDate "2021.11.06"]
[EventType "team-tourn"]
[EventCountry "AUT"]
[SourceTitle "playchess.com"]
[Source "ChessBase"]
[SourceQuality "1"]
[TimeControl "40/5400+30:1800+30"]

{[%evp 23,65,15,24,20,34,33,31,23,44,36,42,42,40,36,112,108,123,114,119,127,459,410,560,549,593,588,651,636,1055,1050,1032,1012,1729,1908,1897,1877,2142,1926,1368,-29971,3064,2650,29972,3013]} 1. Nf3 {[%emt 0:00:21]} Nf6 {[%emt 0:00:06]} 2. g3 {[%emt 0:00:23]} e6 {[%emt 0:00:14]} 3. Bg2 {[%emt 0:00:21]} d5 {[%emt 0:00:55]} 4. d4 {[%emt 0:00:42]} Be7 {[%emt 0:04:26]} 5. O-O {[%emt 0:00:49]} O-O {[%emt 0:00:16]} 6. c4 {[%emt 0:00:21]} dxc4 {[%emt 0:02:13]} 7. Qc2 {[%emt 0:00:15]} a6 {[%emt 0:02:49]} 8. a4 {[%emt 0:00:31]} Bd7 {[%emt 0:00:11][%cal Bc8d7,Bd7c6,Bc6d5,Bd5e4][%mdl 32]} 9. Qxc4 {[%emt 0:00:58]} Bc6 {[%emt 0:00:10]} 10. Bg5 {[%emt 0:00:16]} Bd5 {[%emt 0:02:27]} 11. Qc2 {[%emt 0:01:11]} Be4 {[%emt 0:01:01]} 12. Qc1 {[%emt 0:00:21]} Nc6 {[%emt 0:08:21]} 13. e3 {[%emt 0:07:43] E05: Open Catalan: 5 Nf3 Be7.} Nd5 {[%emt 0:06:35]} 14. Bxe7 {[%emt 0:08:47]} Qxe7 {[%emt 0:00:33]} 15. Nbd2 {[%emt 0:13:27] White is slightly better.} Bxf3 {[%emt 0:05:36]} 16. Bxf3 {[%emt 0:01:11]} Rfd8 {[%emt 0:01:10]} 17. Nb3 {[%emt 0:04:39]} Ncb4 {[%emt 0:05:45] [#]} 18. a5 $146 {[%emt 0:07:30][%cal Ba4a5,Ba5b6][%mdl 32]} ({Predecessor:} 18. e4 Nf6 19. Qc3 a5 20. Rfd1 b6 21. Rd2 Rac8 22. Bg2 h6 23. Rad1 Qe8 24. Ra1 {½-½ (35) Matviishen,V (2435)-Mosesov,D (2271) Vinnytsia 2018}) 18... b6 {[%emt 0:06:01]} ({Black should play} 18... e5 $14) 19. e4 $16 {[%emt 0:06:14]} Nf6 {[%emt 0:00:37] [#]} 20. Qc3 $1 {[%emt 0:04:30]} Rac8 {[%emt 0:12:44]} 21. Ra4 {[%emt 0:03:17][%cal Ba1a4,Ba4a5,Ba5c5][%mdl 32]} c5 {[%emt 0:00:54][%mdl 8192]} (21... bxa5 $16 22. Rxa5 (22. Nxa5 Rb8 $16) 22... Rb8) 22. axb6 $18 {[%emt 0:01:14]} Qd7 {[%emt 0:06:36]} 23. Ra5 {[%emt 0:04:33]} Nc6 {[%emt 0:02:35][%cal Rc5d4]} 24. Rxc5 {[%emt 0:01:03]} Qb7 {[%emt 0:04:06]} 25. d5 {[%emt 0:05:34][%cal Bd4d5,Bd5d6][%mdl 32]} Ne7 {[%emt 0:01:34]} 26. d6 {[%emt 0:05:55]} Nc6 {[%emt 0:06:01]} 27. e5 {[%emt 0:01:12] Na5 is the strong threat.} Nd5 {[%emt 0:00:09]} 28. Bxd5 {[%emt 0:00:50]} exd5 {[%emt 0:00:06]} 29. Rc1 {[%emt 0:01:36]} Qxb6 {[%emt 0:00:55]} 30. Rxc6 {[%emt 0:02:36]} Rxc6 {[%emt 0:00:07]} 31. Qc4 $4 {[%mdl 8192]} Rc5 $4 {[%mdl 8192]} 32. Qxc5 {[%emt 0:00:33]} Qxb3 {[%emt 0:00:37] [#]} 33. Qc7 {[%emt 0:00:22] Quite a comeback for White.  Weighted Error Value: White=0.36/Black=1.10} (33. Qc8 $142 $3 {[%mdl 512]} f6 (33... Qb6 34. Rc7) 34. Qxd8+ Kf7 35. d7 Kg6 36. Qc7 Qxb2 37. e6 Kh6 38. d8=Q) 1-0

[Event "AUT Bundesliga Women 2021-22"]
[Site "Austria"]
[Date "2022.04.23"]
[Round "9.7"]
[White "Wu, Min"]
[Black "Worek, Joanna"]
[Result "0-1"]
[ECO "B56"]
[WhiteElo "1952"]
[BlackElo "2277"]
[Annotator "TA"]
[PlyCount "66"]
[EventDate "2021.11.06"]
[EventType "team-tourn"]
[EventCountry "AUT"]
[SourceTitle "playchess.com"]
[Source "ChessBase"]
[SourceQuality "1"]
[TimeControl "40/5400+30:1800+30"]

{[%evp 9,66,25,28,0,0,0,-5,4,53,49,73,69,87,86,85,82,109,86,117,73,81,33,37,20,50,38,50,43,119,94,109,0,0,-35,-51,-44,-47,-53,-62,-52,-54,-52,-58,-48,0,-32,-25,-19,-53,-121,-110,-333,-258,-319,-314,-284,-287,-484,-467]} 1. e4 {[%emt 0:00:05]} c5 {[%emt 0:00:04]} 2. Nf3 {[%emt 0:00:04]} d6 {[%emt 0:00:04]} 3. d4 {[%emt 0:00:04]} cxd4 {[%emt 0:00:05]} 4. Nxd4 {[%emt 0:00:05]} Nf6 {[%emt 0:00:05]} 5. Nc3 {[%emt 0:00:08]} Nc6 {[%emt 0:00:07]} 6. h4 {[%emt 0:00:29] B56: Classical Sicilian: Unusual Lines.} (6. Bb5 Bd7 7. O-O) 6... e5 {[%emt 0:02:40]} 7. Nb3 {[%emt 0:00:09]} Be6 {[%emt 0:01:52]} 8. Bg5 {[%emt 0:02:01] [#] The position is equal.} a6 $146 {[%emt 0:04:51]} (8... Be7 $11) ({Predecessor:} 8... Be7 9. Bxf6 Bxf6 10. g3 O-O 11. Qd2 a5 12. a4 Bxb3 13. cxb3 Nd4 14. Qd1 Be7 {1-0 (31) Sychev,K (2572)-Durarbayli,V (2606) Chess.com INT 2021}) 9. Qd2 $14 {[%emt 0:17:16]} Rc8 {[%emt 0:06:34]} 10. g3 {[%emt 0:08:21]} h6 {[%emt 0:10:07]} 11. Bxf6 {[%emt 0:00:20]} Qxf6 {[%emt 0:00:02] [#]} 12. O-O-O $1 {[%emt 0:06:28]} b5 {[%emt 0:07:35]} 13. Kb1 {[%emt 0:04:09]} Qd8 {[%emt 0:09:56]} 14. Nd5 {[%emt 0:04:48]} Be7 {[%emt 0:02:40]} 15. h5 {[%emt 0:16:03]} (15. Bh3 $16) 15... O-O {[%emt 0:04:32]} 16. f4 {[%emt 0:09:46]} Bf6 {[%emt 0:00:25]} 17. Bh3 {[%emt 0:02:06]} ({Much worse is} 17. Nxf6+ Qxf6 18. Nc1 (18. Qxd6 $2 Rfd8 $19) 18... Rfd8 $11) 17... Re8 {[%emt 0:16:20]} 18. Bxe6 {[%emt 0:06:10]} Rxe6 {[%emt 0:04:11]} (18... fxe6 $14 19. Nxf6+ Qxf6) 19. Rhe1 {[%emt 0:01:06]} a5 {[%emt 0:06:05]} 20. Qe2 {[%emt 0:08:10]} ({White should try} 20. Qd3 $16) 20... a4 $1 $11 {[%emt 0:02:18]} 21. Nd2 {[%emt 0:09:31] Pair of Knights!} (21. Nc1 $5 {[%cal Re2d3]}) 21... Nd4 {[%emt 0:01:20]} 22. Qd3 {[%emt 0:01:54] [#] Black must now prevent f5.} Nxc2 {[%emt 0:00:16]} 23. Rf1 {[%emt 0:00:13]} Nd4 $1 {[%emt 0:08:08]} 24. Nf3 {[%emt 0:00:52]} Nxf3 {[%emt 0:00:26]} 25. Qxf3 {[%emt 0:00:11]} exf4 {[%emt 0:00:30]} 26. gxf4 {[%emt 0:00:19]} a3 {[%emt 0:05:31]} (26... b4 $15 {might be stronger.}) 27. e5 {[%emt 0:02:28]} (27. Qxa3 $5 {[%cal Ra3f3]} Rxe4 28. Qd3 $11) 27... dxe5 {[%emt 0:02:07]} 28. fxe5 {[%emt 0:00:03]} Rxe5 {[%emt 0:00:38] ...axb2 is the strong threat.} 29. Nxf6+ {[%emt 0:00:37]} (29. bxa3 $15 Kh8 30. Qh3) 29... Qxf6 $17 {[%emt 0:00:06]} 30. Qb7 $2 {[%emt 0:00:41] Loses the game.} (30. Qxf6 $17 {is a better defense.} gxf6 31. Rxf6) 30... Qe6 $19 {[%emt 0:01:16]} 31. Rxf7 {[%emt 0:00:13]} Qxf7 {[%emt 0:00:31] Dancing on a razor blade.} 32. Qxc8+ {[%emt 0:00:03]} Kh7 {[%emt 0:00:28] Hoping for ...Re2.} 33. bxa3 $2 {[%emt 0:00:00]} (33. Qc2+ Qf5 34. Qxf5+ Rxf5 35. Rh1) 33... Qxh5 {[%emt 0:00:13] Weighted Error Value: White=0.38/Black=0.13 (very precise)} ({But not} 33... Re2 $2 34. Qc3 Qxh5 35. Rg1 Qf5+ 36. Kc1 $19) 0-1

[Event "AUT Bundesliga Women 2021-22"]
[Site "Austria"]
[Date "2022.04.23"]
[Round "9.8"]
[White "Theissl-Pokorna, Regina"]
[Black "Roeck, Vanessa"]
[Result "1-0"]
[ECO "B02"]
[WhiteElo "2298"]
[BlackElo "1618"]
[Annotator "TA"]
[PlyCount "55"]
[EventDate "2021.11.06"]
[EventType "team-tourn"]
[EventCountry "AUT"]
[SourceTitle "playchess.com"]
[Source "ChessBase"]
[SourceQuality "1"]
[TimeControl "40/5400+30:1800+30"]

{[%evp 9,54,42,40,33,39,31,48,29,47,14,59,63,110,91,133,147,143,114,175,172,390,387,379,372,421,416,383,406,425,408,429,423,425,433,427,420,418,427,614,609,576,556,558,493,1418,1397,29999]} 1. e4 {[%emt 0:00:03]} Nf6 {[%emt 0:00:04]} 2. Nc3 {[%emt 0:00:28]} d5 {[%emt 0:00:17]} 3. exd5 {[%emt 0:00:05]} Nxd5 {[%emt 0:00:08]} 4. Bc4 {[%emt 0:00:15]} Be6 {[%emt 0:00:50]} 5. Bb3 {[%emt 0:11:46]} g6 {[%emt 0:02:18]} 6. Nf3 {[%emt 0:00:32] B02: Alekhine's Defence: Chase Variation and lines with early Nc3.} Bg7 {[%emt 0:06:15]} 7. O-O {[%emt 0:04:25]} O-O {[%emt 0:02:04] [#]} 8. Ne4 $146 {[%emt 0:07:14] White is slightly better.} ({Predecessor:} 8. Re1 c6 9. Ne4 Nc7 10. d4 Bxb3 11. axb3 Nd7 12. c3 a6 13. b4 Nd5 14. Bd2 {1-0 (39) Jackson,E-Noteboom,D Scarborough/ North Yorkshire 1930}) 8... Nc6 {[%emt 0:02:56]} 9. d4 {[%emt 0:20:08]} Bg4 {[%emt 0:06:37][%cal Oc6d4]} 10. c3 {[%emt 0:00:36]} b5 {[%emt 0:19:07] [#]} (10... Na5 $14) 11. h3 $1 $16 {[%emt 0:01:08]} Bxf3 {[%emt 0:02:26]} 12. Qxf3 {[%emt 0:00:05]} ({Of course not} 12. gxf3 $6 Na5 $11) 12... e6 {[%emt 0:02:57]} 13. Re1 {[%emt 0:09:23]} b4 {[%emt 0:08:17]} (13... Na5 $16) 14. Bg5 $18 {[%emt 0:02:01]} f6 $2 {[%emt 0:05:44]} (14... Qc8 {keeps fighting.} 15. Rac1 Rb8 16. Bxd5 exd5) 15. Bd2 {[%emt 0:00:14] [#] Nc5 is the strong threat. This bishop pair is nice.} bxc3 {[%emt 0:05:11]} 16. bxc3 {[%emt 0:00:09] And now Nc5 would win.} Na5 {[%emt 0:00:33]} 17. Nc5 {[%emt 0:04:41]} Nxb3 {[%emt 0:02:18]} 18. axb3 {[%emt 0:00:06]} Re8 {[%emt 0:02:57]} 19. Rxe6 {[%emt 0:08:13]} Rxe6 {[%emt 0:03:10]} 20. Nxe6 {[%emt 0:00:06]} Qd7 {[%emt 0:00:21]} 21. Nxg7 {[%emt 0:01:35]} Kxg7 {[%emt 0:00:03]} 22. c4 {[%emt 0:00:07]} Nb6 {[%emt 0:02:09]} 23. d5 {[%emt 0:01:52]} Qd6 {[%emt 0:02:33]} (23... Re8 $142 24. Bc3 Rf8 25. Rxa7 Qd8) 24. Re1 {[%emt 0:03:21][%cal Ba1e1,Be1e6,Be6e8][%mdl 32] Hoping for Re6.} Rf8 {[%emt 0:01:36]} 25. Re6 {[%emt 0:00:22]} Qd8 {[%emt 0:00:16]} 26. Qe3 {[%emt 0:02:41] aiming for Re7+.} Rf7 {[%emt 0:00:51] Prevents Re7.} (26... Nc8 $142 27. Bc3 Rf7) 27. Re8 {[%emt 0:00:52][%csl Gd2][%cal Re3h6]} Qd7 {[%emt 0:00:56]} 28. Qh6# {[%emt 0:00:46] Weighted Error Value: White=0.08 (flawless) /Black=0.61} 1-0